bitfinex-derivatives/quotes_ETHF0:USTF0_20250217
["timestamp","ask_amount","ask_price","bid_price","bid_amount"]
[1739789159461,2.64843065,2759.9,2759.7,0.72467]
[1739789159756,0.00543065,2759.9,2759.8,8.50713642]
[1739789159960,5.8508,2760.6,2759.8,8.35648642]
[1739789160156,2.643,2760.6,2760.0,3.2078]
[1739789160363,2.643,2760.8,2760.5,0.72445]
[1739789160569,2.643,2760.8,2760.0,3.2078]
[1739789160570,3.85725915,2760.7,2760.1,8.32628642]
[1739789160768,3.85725915,2760.7,2760.2,0.72454]
[1739789160963,3.85725915,2760.7,2760.1,8.32628642]
[1739789161160,0.00543065,2760.7,2760.4,0.72448]
[1739789161362,0.00543065,2760.7,2760.2,7.49826407]
[1739789161662,3.8626898,2760.7,2760.2,0.00543065]
[1739789161864,0.72448,2760.5,2760.2,0.00543065]
[1739789162268,3.2078,2760.6,2760.2,0.00543065]
[1739789162469,3.2078,2760.6,2760.2,0.72996065]
[1739789162872,3.2078,2760.6,2760.3,0.7245]
[1739789163560,3.2078,2760.6,2760.5,0.72447]
[1739789163758,0.00543065,2760.7,2760.6,0.72444]
[1739789164563,0.00543065,2760.7,2760.6,8.49072988]
[1739789165572,27.14705915,2761.8,2760.6,14.49072988]
[1739789165765,0.72425,2761.4,2760.6,7.76628988]
[1739789165965,7.06505915,2761.5,2760.6,7.76628988]
[1739789166166,3.85725915,2761.2,2760.6,7.76628988]
[1739789166469,7.78935915,2761.2,2760.6,7.76628988]
[1739789166664,0.72431,2761.1,2760.6,8.49071988]
[1739789166868,0.72431,2761.1,2760.6,7.76628988]
[1739789167073,0.72431,2761.1,2760.6,8.49072988]
[1739789167773,3.2078,2760.9,2760.6,8.49072988]
[1739789168166,3.2078,2760.9,2760.6,7.76628988]
[1739789168669,0.72442,2760.7,2760.3,0.5441]
[1739789168974,0.72442,2760.7,2760.4,0.72449]
[1739789169170,0.72441,2760.8,2760.4,0.72449]
[1739789169774,7.06505915,2760.9,2760.3,0.5441]
[1739789170171,7.78951915,2760.6,2760.2,0.00543065]
[1739789170476,0.72447,2760.5,2760.2,0.00543065]
[1739789170971,9.70705915,2760.6,2760.2,0.00543065]
[1739789171175,0.72448,2760.5,2760.2,0.72997065]
[1739789171568,9.70705915,2760.6,2760.2,0.00543065]
[1739789171768,9.70705915,2760.6,2760.3,0.7245]
[1739789172067,0.72448,2760.5,2760.2,0.72996065]
[1739789172268,0.72452,2760.3,2760.2,0.00543065]
[1739789172568,0.72451,2760.4,2760.2,0.00543065]
[1739789172970,9.70705915,2760.6,2760.2,0.00543065]
[1739789173880,5.8498,2760.6,2760.5,0.72447]
[1739789174073,3.2078,2760.6,2760.5,0.72447]
[1739789174375,0.5289,2761.0,2760.5,0.72447]
[1739789174376,3.2078,2761.0,2760.5,7.51546248]
[1739789174679,0.7244,2760.8,2760.6,0.5628]
[1739789174878,6.49925915,2760.9,2760.8,0.72439]
[1739789175073,5.8498,2761.0,2760.9,0.72436]
[1739789175278,5.8498,2761.0,2760.6,0.5628]
[1739789175480,6.57415,2761.0,2760.6,1.28723]
[1739789175869,5.8498,2761.0,2760.7,0.7244]
[1739789176180,5.8498,2761.0,2760.9,0.72436]
[1739789176478,5.8498,2761.0,2760.6,0.5628]
[1739789176783,0.72438,2760.9,2760.6,0.5628]
[1739789176979,5.8498,2761.0,2760.6,0.5628]
[1739789177279,5.8498,2761.0,2760.8,0.72438]
[1739789177481,5.8498,2761.0,2760.9,0.72436]
[1739789178183,6.57415,2761.0,2760.7,0.72441]
[1739789178474,6.57415,2761.0,2760.6,1.0998]
[1739789179070,5.8498,2761.0,2760.6,1.0998]
[1739789179376,6.57416,2761.0,2760.6,1.82423]
[1739789179680,5.8498,2761.0,2760.6,1.0998]
[1739789179873,5.8498,2761.0,2760.8,0.72437]
[1739789180076,5.8498,2761.0,2760.9,0.72436]
[1739789180481,5.8498,2761.0,2760.7,7.76063736]
[1739789180871,0.72436,2760.9,2760.6,0.5628]
[1739789181076,0.72439,2760.9,2760.6,1.28724]
[1739789181671,5.8498,2761.0,2760.6,0.5628]
[1739789181884,6.57415,2761.0,2760.7,0.72441]
[1739789182482,3.2078,2761.0,2760.8,0.72437]
[1739789182784,3.2078,2761.0,2760.9,0.72436]
[1739789183377,3.2078,2761.0,2760.9,8.20895624]
[1739789183680,0.00543065,2761.2,2761.1,0.72431]
[1739789184080,0.00543065,2761.2,2761.1,8.4924716]
[1739789184576,3.2078,2761.8,2761.1,7.7681616]
[1739789184983,3.93194,2761.8,2761.1,7.7681616]
[1739789185179,3.2078,2761.5,2760.7,3.2078]
[1739789185484,3.2078,2761.5,2761.1,0.7243]
[1739789185485,3.93202,2761.5,2761.1,0.7243]
[1739789185677,3.2078,2761.5,2761.0,7.74060071]
[1739789185877,3.2078,2761.5,2760.8,7.74060071]
[1739789185878,0.72427,2761.3,2760.8,0.72437]
[1739789186183,0.72427,2761.3,2761.0,7.40907551]
[1739789186383,3.93202,2761.5,2761.1,0.7243]
[1739789186583,0.72423,2761.4,2761.1,0.7243]
[1739789186777,0.72423,2761.4,2761.1,0.72431]
[1739789187184,0.72427,2761.3,2760.9,0.72436]
[1739789187385,3.2078,2761.5,2760.7,3.7708]
[1739789187684,0.7243,2761.2,2760.8,8.38782326]
[1739789187883,3.2078,2761.5,2760.8,7.66344326]
[1739789188085,3.2078,2761.5,2760.9,0.72436]
[1739789188086,0.7243,2761.2,2760.9,0.72436]
[1739789188285,3.2078,2761.5,2760.9,0.72436]
[1739789188581,0.72428,2761.3,2760.9,0.72436]
[1739789188785,3.2078,2761.5,2760.9,0.72436]
[1739789189085,0.72428,2761.3,2760.8,7.66344326]
[1739789189281,3.2078,2760.9,2760.2,0.00543065]
[1739789189483,3.85725915,2760.7,2760.2,0.00543065]
[1739789189677,2.641,2760.8,2760.3,7.56173391]
[1739789190079,2.641,2760.8,2760.7,0.72442]
[1739789190479,3.2078,2760.9,2760.4,0.5767]
[1739789190882,3.2078,2760.9,2760.6,0.72443]
[1739789191182,3.2078,2760.9,2760.5,7.40687952]
[1739789191383,3.2078,2760.9,2760.8,0.72439]
[1739789192284,2.641,2761.2,2761.1,0.72431]
[1739789192483,3.85725915,2761.3,2761.1,0.72431]
[1739789192686,3.85725915,2761.3,2761.0,0.72432]
[1739789193087,3.85725915,2761.3,2760.7,7.41567035]
[1739789193285,0.72432,2761.1,2760.7,8.14007035]
[1739789193587,4.58151915,2761.3,2761.0,0.72434]
[1739789193987,3.85725915,2761.3,2761.0,0.72434]
[1739789194382,3.2078,2761.1,2759.8,1.204]
[1739789194589,3.9322,2760.8,2760.4,0.72448]
[1739789194795,3.2078,2760.8,2760.4,7.79358053]
[1739789194985,3.2078,2760.8,2760.6,0.72442]
[1739789195288,3.2078,2760.8,2760.3,0.5486]
[1739789195489,2.641,2761.0,2760.8,0.72438]
[1739789195888,3.2078,2761.1,2760.4,3.2078]
[1739789196088,3.2078,2761.1,2760.5,1.81118]
[1739789196295,3.2078,2761.1,2760.9,0.72434]
[1739789197386,3.2078,2761.1,2761.0,0.72434]
[1739789198095,0.72435,2761.0,2760.4,3.2078]
[1739789198288,3.85725915,2761.0,2760.4,3.2078]
[1739789198793,3.2078,2761.1,2760.4,3.2078]
[1739789199094,3.2078,2761.1,2760.4,5.01901]
[1739789199290,3.2078,2761.1,2760.3,3.7564]
[1739789199489,0.72435,2761.0,2760.3,3.7564]
[1739789199690,0.72435,2761.0,2760.6,0.72443]
[1739789199890,0.72435,2761.0,2760.7,0.7244]
[1739789200593,0.7244,2760.8,2760.5,0.72446]
[1739789200789,3.3654,2760.8,2760.5,0.72446]
[1739789201586,6.49825915,2760.8,2760.4,7.62783929]
[1739789201987,7.22264915,2760.8,2760.5,0.72445]
[1739789202299,7.22265915,2760.8,2760.5,0.72445]
[1739789202499,3.36539,2760.8,2760.6,0.72443]
[1739789202695,3.36539,2760.8,2760.5,0.72446]
[1739789203198,3.36539,2760.8,2760.6,0.72443]
[1739789203388,0.72443,2760.7,2760.5,0.72446]
[1739789203594,3.2078,2761.1,2760.4,7.62783929]
[1739789203798,3.2078,2761.1,2761.0,0.72434]
[1739789204391,3.85725915,2761.4,2761.0,0.72434]
[1739789204392,3.2078,2761.4,2761.3,0.72426]
[1739789205291,0.00543065,2761.6,2761.5,0.72421]
[1739789208902,0.00543065,2761.6,2761.3,7.78979729]
[1739789209095,0.00543065,2761.6,2761.5,0.72421]
[1739789209496,5.93082392,2762.7,2761.5,7.77207412]
[1739789209497,5.8488,2762.3,2761.5,7.77207412]
[1739789209696,5.8488,2762.3,2762.0,0.72406]
[1739789209998,5.8488,2762.3,2762.0,0.72405]
[1739789210199,5.8488,2762.3,2761.8,1.1219]
[1739789210402,0.72404,2762.2,2761.9,0.72408]
[1739789210704,9.70605915,2762.3,2761.8,8.06537679]
[1739789210705,3.2078,2762.0,2761.8,8.06537679]
[1739789211001,0.7241,2761.9,2761.8,0.00543065]
[1739789211211,7.78915915,2762.0,2761.8,0.00543065]
[1739789211507,0.7241,2761.9,2761.8,0.00543065]
[1739789211701,3.3651,2761.9,2761.8,0.00543065]
[1739789212304,44.1651,2761.9,2761.8,0.00543065]
[1739789213103,0.72424,2761.4,2761.2,0.72427]
[1739789213303,3.93204,2761.4,2760.9,0.5517]
[1739789213499,3.93204,2761.4,2761.2,0.72426]
[1739789214308,3.2078,2761.4,2761.3,0.72426]
[1739789214800,3.2078,2761.4,2761.0,7.58760868]
[1739789214994,3.2078,2761.4,2761.3,0.72426]
[1739789218509,2.64,2761.9,2761.3,7.80051806]
[1739789218707,2.64,2761.9,2761.8,0.72413]
[1739789218908,3.2078,2762.0,2761.9,0.7241]
[1739789220009,5.85323065,2762.3,2761.5,8.73584079]
[1739789220204,5.85323065,2762.3,2762.1,0.72404]
[1739789220396,2.64543065,2762.3,2762.1,0.72404]
[1739789220904,3.85725915,2762.2,2761.5,4.3031]
[1739789221103,0.7241,2761.9,2761.5,1.0953]
[1739789221406,2.64,2761.9,2761.8,0.72413]
[1739789221711,2.64,2761.9,2761.6,0.72418]
[1739789221909,3.36411,2761.9,2761.6,0.72418]
[1739789222305,2.64,2761.9,2761.8,0.72413]
[1739789222797,3.36403,2762.2,2761.9,0.72408]
[1739789223004,3.36403,2762.2,2762.0,0.72407]
[1739789223205,2.64,2762.2,2761.6,10.70741496]
[1739789223405,2.64,2762.2,2762.1,0.72405]
[1739789224313,2.64,2762.2,2762.0,0.72407]
[1739789224505,2.64,2762.2,2761.9,0.72409]
[1739789224705,0.72403,2762.2,2761.9,0.72409]
[1739789225013,0.72408,2762.0,2761.8,0.72413]
[1739789225211,0.7241,2762.0,2761.5,1.0953]
[1739789225406,0.7241,2761.9,2761.6,0.72416]
[1739789225608,3.85725915,2761.9,2761.3,3.2078]
[1739789225808,3.2078,2761.7,2761.0,1.20943065]
[1739789226009,2.64,2761.6,2761.5,0.72419]
[1739789226203,3.2078,2761.7,2761.6,0.72418]
[1739789226610,2.64,2761.9,2761.1,9.42832292]
[1739789226806,0.72414,2761.8,2761.1,1.81079]
[1739789227114,0.72414,2761.8,2761.6,0.72417]
[1739789227313,5.8478,2761.9,2761.2,7.65809616]
[1739789227609,2.64,2761.9,2761.8,0.72413]
[1739789229203,3.2078,2762.2,2761.7,1.107]
[1739789229919,0.72406,2762.1,2761.8,0.72412]
[1739789230214,0.72411,2761.9,2761.7,0.5675]
[1739789230414,4.58135915,2762.0,2761.7,1.29165]
[1739789230611,3.85725915,2762.0,2761.7,0.5675]
[1739789230814,0.72411,2761.9,2761.7,0.5675]
[1739789231210,0.72417,2761.7,2761.4,0.72422]
[1739789231506,3.2078,2761.9,2761.2,3.7481]
[1739789231507,2.64,2761.8,2761.2,3.7481]
[1739789231715,0.7243,2761.2,2761.0,0.00543065]
[1739789232609,6.49725915,2761.4,2761.1,0.7243]
[1739789232810,6.49725915,2761.4,2761.3,0.72426]
[1739789232811,2.64,2761.4,2761.3,0.72426]
[1739789233307,3.2078,2761.9,2761.2,1.1231]
[1739789233504,2.64,2761.8,2761.7,0.72414]
[1739789233812,3.2078,2761.9,2761.3,10.79635843]
[1739789234016,3.2078,2761.9,2761.8,0.72413]
[1739789235418,5.8478,2762.2,2761.9,0.72409]
[1739789235607,5.8478,2762.2,2761.6,3.2078]
[1739789236015,5.8478,2762.2,2762.0,0.72406]
[1739789236719,0.00543065,2762.3,2762.2,0.72402]
[1739789236920,3.85725915,2762.9,2762.2,0.72402]
[1739789236921,2.639,2762.9,2762.6,0.72391]
[1739789237118,2.639,2762.9,2762.2,0.5468]
[1739789237119,1.1119,2763.1,2762.7,0.72388]
[1739789237417,2.639,2763.0,2762.8,0.72385]
[1739789237619,3.2078,2763.2,2762.8,7.50077576]
[1739789237918,16.89541421,2763.5,2763.4,0.72371]
[1739789238221,0.00543065,2763.7,2763.4,8.42575302]
[1739789238518,0.00543065,2763.7,2763.5,0.72368]
[1739789238715,0.00543065,2763.7,2763.4,7.70204302]
[1739789238920,3.2078,2764.3,2764.1,0.72351]
[1739789239419,16.89541421,2764.7,2764.2,8.23159343]
[1739789239726,16.89541421,2764.7,2764.2,8.77539343]
[1739789240017,3.2078,2764.6,2764.2,8.77539343]
[1739789240212,3.2078,2764.6,2764.2,8.78082408]
[1739789241221,0.00543065,2764.7,2764.3,3.2078]
[1739789241418,0.00543065,2764.7,2764.4,2.639]
[1739789241622,0.00543065,2764.7,2764.4,10.33014959]
[1739789242218,0.00543065,2764.7,2764.4,11.05358959]
[1739789242526,0.00543065,2764.7,2764.4,10.33014959]
[1739789242822,0.00543065,2764.7,2764.5,0.7234]
[1739789243019,0.00543065,2764.7,2764.6,3.93119]
[1739789243212,0.72315,2765.6,2764.6,10.71116564]
[1739789243412,0.72313,2765.6,2764.9,0.72331]
[1739789243614,3.2078,2765.7,2764.9,3.2078]
[1739789243820,3.2078,2765.7,2765.2,0.72322]
[1739789244125,3.2078,2765.7,2765.3,7.40029487]
[1739789244419,3.21323065,2765.7,2765.3,7.40029487]
[1739789244825,3.21323065,2765.7,2765.1,7.40029487]
[1739789245121,3.21323065,2765.7,2765.0,4.91625915]
[1739789245325,3.21323065,2765.7,2765.1,7.58333738]
[1739789245520,3.21323065,2765.7,2765.2,2.637]
[1739789245720,3.21323065,2765.7,2765.1,10.94359738]
[1739789245921,3.21323065,2765.7,2765.3,7.58333738]
[1739789246117,3.21323065,2765.7,2765.2,7.47476643]
[1739789246420,0.00543065,2765.7,2765.3,3.2078]
[1739789246625,0.00543065,2765.7,2765.4,0.72318]
[1739789246927,0.00543065,2765.7,2765.4,7.47476643]
[1739789247117,0.00543065,2765.7,2765.6,0.72313]
[1739789247425,0.00543065,2765.7,2765.6,8.13066399]
[1739789248027,0.00543065,2765.7,2765.6,11.33846399]
[1739789248331,0.00543065,2765.7,2765.6,10.61533399]
[1739789249125,0.00543065,2765.7,2765.6,11.33846399]
[1739789249417,0.00543065,2765.7,2765.6,10.61533399]
[1739789250424,0.00543065,2765.7,2765.6,7.40753399]
[1739789250732,0.00543065,2765.7,2765.3,7.69115672]
[1739789251126,0.00543065,2765.7,2765.2,3.2078]
[1739789251127,0.00543065,2765.7,2765.6,0.72313]
[1739789251631,0.00543065,2765.7,2765.6,8.11926643]
[1739789253231,0.00543065,2765.7,2765.6,7.39613643]
[1739789253827,0.00543065,2765.7,2765.5,7.55054166]
[1739789254031,0.00543065,2765.7,2765.5,8.27369166]
[1739789254337,0.00543065,2765.7,2765.5,0.72315]
[1739789254633,0.00543065,2765.7,2765.6,7.63503411]
[1739789255429,0.00543065,2765.7,2765.6,0.72313]
[1739789255828,0.00543065,2765.7,2765.6,8.15158457]
[1739789258825,0.00543065,2765.7,2765.6,7.42845457]
[1739789259330,0.00543065,2765.7,2765.6,0.72313]
[1739789259836,0.00543065,2765.7,2765.6,8.16269875]
[1739789260433,0.00543065,2765.7,2765.6,7.43956875]
[1739789260733,0.72854065,2765.7,2765.2,3.2078]
[1739789260938,0.00543065,2765.7,2765.5,0.72316]
[1739789261333,0.72855065,2765.7,2765.3,7.43672944]
[1739789261540,0.72855065,2765.7,2765.0,1.059]
[1739789261541,7.06505915,2765.5,2764.5,3.2078]
[1739789261740,3.85725915,2765.2,2764.8,0.72333]
[1739789261943,3.85725915,2765.2,2764.9,7.43672944]
[1739789262134,7.06505915,2765.2,2764.9,7.43672944]
[1739789262435,0.72329,2765.0,2764.5,1.27841]
[1739789262634,7.06505915,2765.2,2764.5,0.555]
[1739789262845,7.06505915,2765.2,2764.9,0.72329]
[1739789263038,7.78830915,2765.2,2764.8,0.72334]
[1739789263338,7.06505915,2765.2,2764.6,7.5310553]
[1739789263541,7.06505915,2765.2,2765.0,0.72328]
[1739789264350,3.2078,2765.2,2765.1,0.72326]
[1739789264637,3.2078,2765.6,2765.3,0.7232]
[1739789264844,3.2078,2765.6,2765.4,0.72317]
[1739789265040,3.2078,2765.6,2765.4,8.28192668]
[1739789265246,3.2078,2765.6,2765.4,0.72317]
[1739789265433,3.2078,2765.6,2765.2,0.5625]
[1739789265640,3.2078,2765.6,2765.4,0.72317]
[1739789265840,3.2078,2765.6,2765.3,7.6033902]
[1739789266040,3.2078,2765.6,2765.3,8.3265902]
[1739789266442,3.2078,2765.6,2765.3,7.6033902]
[1739789266837,3.2078,2765.6,2765.4,0.72318]
[1739789267241,3.2078,2765.6,2765.3,7.6033902]
[1739789267443,3.2078,2765.6,2765.5,0.72316]
[1739789267647,3.2078,2765.6,2765.3,7.6033902]
[1739789267948,3.2078,2765.6,2765.5,0.72316]
[1739789268336,3.2078,2765.6,2765.5,8.13646303]
[1739789268542,0.00543065,2765.7,2765.5,7.41330303]
[1739789268745,0.00543065,2765.7,2765.6,0.72313]
[1739789269141,0.00543065,2765.7,2765.6,8.11027684]
[1739789288176,0.00543065,2765.7,2765.6,7.38714684]
[1739789288470,0.00543065,2765.7,2765.6,0.72313]
[1739789288874,0.00543065,2765.7,2765.6,8.15167686]
[1739789294971,0.00543065,2765.7,2765.6,11.35947686]
[1739789295174,0.36160001,2766.8,2765.6,11.35947686]
[1739789295175,3.2078,2766.8,2765.6,16.63634686]
[1739789295374,3.7787,2767.0,2766.3,3.2078]
[1739789295574,3.7787,2767.0,2766.9,0.72279]
[1739789295879,2.633,2767.0,2766.9,0.72279]
[1739789296088,2.633,2767.0,2766.4,11.30900925]
[1739789296377,2.633,2767.0,2766.8,0.7228]
[1739789296578,2.633,2767.0,2766.6,7.45441184]
[1739789296776,0.7228,2766.9,2766.5,0.72287]
[1739789297171,0.72282,2766.8,2766.7,7.45441184]
[1739789297378,0.7229,2766.5,2766.4,0.00542074]
[1739789297576,6.5627,2766.5,2766.4,0.00542074]
[1739789297775,6.5627,2766.5,2765.7,2.632]
[1739789297776,0.72304,2766.0,2765.7,0.7231]
[1739789297978,5.716667,2766.1,2765.5,4.3157]
[1739789298281,5.716667,2766.1,2765.8,7.79347919]
[1739789298475,3.2078,2765.9,2765.6,7.39373887]
[1739789298668,3.084667,2765.7,2765.1,3.2078]
[1739789298973,3.93104,2765.2,2765.1,0.00542074]
[1739789299179,5.8398,2765.2,2764.1,0.5384]
[1739789299380,3.084667,2765.0,2764.6,0.72338]
[1739789299570,2.632,2765.1,2764.5,7.72070093]
[1739789299772,2.632,2765.1,2765.0,0.72327]
[1739789300679,2.632,2765.1,2765.0,8.38286164]
[1739789301274,2.632,2765.3,2765.2,0.72321]
[1739789301471,3.87101094,2765.7,2765.2,0.72321]
[1739789301472,2.632,2765.4,2765.2,0.72321]
[1739789301683,2.632,2765.4,2765.1,1.24655]
[1739789301880,2.632,2765.4,2765.1,0.5233]
[1739789302373,0.00357749,2765.7,2765.6,0.72313]
[1739789302678,2.632,2766.1,2766.0,0.72303]
[1739789302983,5.8398,2766.4,2766.3,0.72295]
[1739789303181,0.00343375,2766.7,2766.1,3.2078]
[1739789303371,0.00343375,2766.7,2766.6,0.72287]
[1739789304269,0.00343375,2766.7,2766.4,0.00542074]
[1739789304270,3.8708672,2766.7,2766.4,0.00542074]
[1739789304671,0.00343375,2766.7,2766.6,0.72287]
[1739789305188,0.00343375,2766.7,2766.6,8.34582033]
[1739789305875,0.00343375,2766.7,2766.6,8.89982033]
[1739789306276,0.00343375,2766.7,2766.6,8.17695033]
[1739789306771,0.00343375,2766.7,2766.6,7.62295033]
[1739789306978,0.00343375,2766.7,2766.6,8.34582033]
[1739789307171,0.00343375,2766.7,2766.6,0.72287]
[1739789307485,0.00343375,2766.7,2766.6,8.14217752]
[1739789311280,0.00343375,2766.7,2766.6,7.41930752]
[1739789311676,0.72287,2766.6,2766.5,7.71738045]
[1739789311876,6.49843345,2766.6,2766.4,0.00542074]
[1739789313179,3.2078,2766.5,2766.4,0.00542074]
[1739789313379,3.9307,2766.5,2766.4,0.00542074]
[1739789313988,3.9307,2766.5,2765.7,0.533]
[1739789313989,9.2078,2766.5,2765.4,3.2078]
[1739789314285,4.59057345,2765.6,2765.1,1.1247]
[1739789314487,7.22157345,2765.6,2765.2,0.72323]
[1739789314875,6.49843345,2765.6,2765.3,0.72321]
[1739789315079,6.49843345,2765.6,2765.1,8.79377669]
[1739789315279,6.49843345,2765.6,2765.4,0.72318]
[1739789315588,6.49843345,2765.6,2765.5,0.72316]
[1739789315786,6.49843345,2765.6,2765.4,0.72316]
[1739789316087,2.631,2765.6,2765.4,0.72316]
[1739789316780,2.631,2765.6,2765.1,8.79377669]
[1739789316980,0.72317,2765.5,2765.1,8.79377669]
[1739789317182,0.72319,2765.4,2765.1,8.79377669]
[1739789317382,3.2078,2765.5,2765.1,9.51701669]
[1739789317582,3.93097,2765.5,2765.1,9.51701669]
[1739789317982,0.72319,2765.4,2765.1,9.51701669]
[1739789318188,3.93097,2765.5,2765.1,8.79377669]
[1739789318389,3.2078,2765.5,2765.1,8.79377669]
[1739789318584,3.2078,2765.5,2765.3,0.72319]
[1739789318787,3.2078,2765.5,2765.1,8.79377669]
[1739789318988,3.2078,2765.5,2765.3,0.72319]
[1739789319290,3.93097,2765.5,2765.2,0.72322]
[1739789319888,0.72322,2765.3,2765.1,8.22897669]
[1739789320281,2.631,2765.2,2765.1,8.22897669]
[1739789320680,2.631,2765.2,2765.1,8.95223669]
[1739789321585,3.21322074,2765.5,2765.1,8.95223669]
[1739789321586,5.84422074,2765.5,2765.1,8.22897669]
[1739789321891,0.72324,2765.2,2765.1,8.22897669]
[1739789322083,5.84422074,2765.5,2765.1,8.95222669]
[1739789322388,6.56739074,2765.5,2765.1,8.95222669]
[1739789322984,5.84422074,2765.5,2765.1,8.22897669]
[1739789323283,5.84422074,2765.5,2765.2,0.72323]
[1739789323483,0.7232,2765.4,2765.1,8.22897669]
[1739789323684,3.21322074,2765.5,2765.1,8.22897669]
[1739789323889,3.21322074,2765.5,2765.4,0.72318]
[1739789324094,5.84422074,2765.5,2765.4,0.72318]
[1739789324290,0.00542074,2765.5,2765.4,0.72318]
[1739789324588,2.631,2765.7,2765.6,0.72313]
[1739789324794,2.631,2766.0,2765.5,3.7743]
[1739789325098,2.631,2766.0,2765.7,7.47909868]
[1739789325288,2.631,2766.0,2765.5,3.7743]
[1739789325487,0.72312,2765.7,2765.5,0.5665]
[1739789325689,0.7231,2765.8,2765.6,7.68327908]
[1739789325991,3.2078,2765.8,2765.1,3.77312074]
[1739789326296,3.2078,2765.8,2765.3,7.67596316]
[1739789326297,3.86743345,2765.6,2765.3,7.67596316]
[1739789326590,0.72324,2765.3,2765.1,0.56532074]
[1739789326788,5.8388,2765.5,2765.1,0.56532074]
[1739789326989,0.72324,2765.2,2765.1,0.56532074]
[1739789327192,0.72324,2765.2,2765.1,0.00542074]
[1739789327589,3.93104,2765.2,2765.1,0.00542074]
[1739789328496,9.93104,2765.2,2765.1,0.00542074]
[1739789328689,9.2078,2765.2,2764.3,0.5334]
[1739789328884,7.07523345,2764.7,2764.4,0.72344]
[1739789329093,9.70623345,2764.7,2764.3,1.25685]
[1739789329296,6.56217,2764.7,2764.3,1.25685]
[1739789329493,6.56217,2764.7,2764.4,0.72344]
[1739789329695,6.56217,2764.7,2764.3,1.25685]
[1739789329895,0.7234,2764.6,2764.3,1.26227074]
[1739789330189,6.56218,2764.7,2764.3,1.26227074]
[1739789330392,6.56218,2764.7,2764.4,0.72344]
[1739789330791,6.56218,2764.7,2764.3,0.53882074]
[1739789330998,6.56218,2764.7,2764.3,1.26228074]
[1739789331500,5.8388,2764.7,2764.3,0.53882074]
[1739789331799,0.72342,2764.5,2764.3,0.53882074]
[1739789332200,0.72341,2764.6,2764.3,1.26229074]
[1739789332406,5.8388,2764.7,2764.5,0.72341]
[1739789332700,6.56217,2764.7,2764.4,0.72343]
[1739789332900,6.56217,2764.7,2764.3,1.26228074]
[1739789333091,6.56217,2764.7,2764.3,0.53882074]
[1739789333092,3.2078,2764.7,2764.3,0.53882074]
[1739789333292,2.631,2764.8,2764.4,7.47857518]
[1739789333498,3.2078,2765.4,2764.9,0.72332]
[1739789333499,2.631,2765.0,2764.9,0.72332]
[1739789333697,3.2078,2765.4,2764.5,3.7336]
[1739789333698,2.631,2765.2,2764.5,0.5258]
[1739789333996,0.72333,2764.9,2764.6,7.47857518]
[1739789334395,3.1674,2765.2,2764.6,7.47857518]
[1739789334601,0.72332,2764.9,2764.6,7.47857518]
[1739789335001,3.2078,2765.0,2764.7,0.72337]
[1739789335502,3.2078,2765.0,2764.8,8.11540262]
[1739789335899,3.2078,2765.0,2764.6,7.39206262]
[1739789336198,3.2078,2765.0,2764.7,0.72335]
[1739789336594,3.2078,2765.0,2764.9,0.72332]
[1739789337198,3.2078,2765.0,2764.8,0.5252]
[1739789337501,3.2078,2765.0,2764.9,8.16587928]
[1739789338601,2.631,2765.3,2764.9,7.44255928]
[1739789338795,2.631,2765.3,2765.1,0.72324]
[1739789339201,2.631,2765.3,2765.2,0.72324]
[1739789339397,7.07523345,2765.6,2765.2,0.72324]
[1739789339699,5.8388,2765.6,2765.3,0.7232]
[1739789340000,6.56193,2765.6,2765.3,0.7232]
[1739789340202,5.8388,2765.6,2764.9,7.44255928]
[1739789340400,5.8388,2765.6,2765.1,0.72325]
[1739789340592,9.70623345,2765.6,2764.9,7.44255928]
[1739789340799,0.72329,2765.0,2764.9,7.44255928]
[1739789342606,0.72345,2764.4,2764.1,3.2078]
[1739789342793,3.35444,2764.5,2764.2,0.72349]
[1739789342995,0.72345,2764.4,2764.2,0.72349]
[1739789343407,3.35444,2764.5,2764.2,0.72349]
[1739789343707,3.35444,2764.5,2764.4,0.72345]
[1739789343708,2.631,2764.5,2764.4,0.72345]
[1739789344207,2.631,2764.5,2764.4,1.28335]
[1739789344504,3.86743345,2764.9,2764.7,0.72336]
[1739789344505,2.631,2764.8,2764.7,0.72336]
[1739789344707,0.72338,2764.7,2764.4,1.28334]
[1739789345304,2.631,2764.8,2764.4,0.5599]
[1739789345608,5.8388,2765.0,2764.5,7.72687789]
[1739789345801,6.56209,2765.0,2764.7,0.72336]
[1739789346202,6.56209,2765.0,2764.8,7.72687789]
[1739789346398,3.86743345,2764.9,2764.8,7.72687789]
[1739789346602,4.59075345,2764.9,2764.8,7.72687789]
[1739789346899,4.59075345,2764.9,2764.3,0.00542074]
[1739789346900,0.72345,2764.4,2764.3,0.00542074]
[1739789347104,6.49843345,2764.4,2763.6,1.1011]
[1739789347402,0.72356,2764.0,2763.7,0.72363]
[1739789347705,3.35456,2764.0,2763.7,0.72363]
[1739789347908,0.72358,2763.9,2763.6,9.32047698]
[1739789348297,2.63642074,2764.0,2763.6,8.59683698]
[1739789348702,2.63642074,2764.0,2763.9,0.72358]
[1739789349205,2.63642074,2764.0,2763.6,11.80463698]
[1739789349406,2.63642074,2764.0,2763.6,8.59683698]
[1739789349607,0.72358,2763.9,2763.6,8.59683698]
[1739789350109,0.72361,2763.8,2763.6,8.59683698]
[1739789350312,2.63642074,2764.0,2763.6,8.07213698]
[1739789350602,0.72363,2763.7,2763.6,0.5764]
[1739789351209,2.63642074,2764.0,2763.6,0.5764]
[1739789351608,0.00542074,2764.0,2763.8,0.7236]
[1739789351804,0.00542074,2764.0,2763.9,0.72358]
[1739789352012,0.00542074,2764.0,2763.9,8.28516505]
[1739789352497,0.00542074,2764.0,2763.9,11.49296505]
[1739789352699,3.2078,2764.6,2764.5,0.72342]
[1739789352908,2.631,2765.0,2764.1,3.86743345]
[1739789353112,3.35429,2765.0,2764.6,0.72338]
[1739789353312,2.631,2765.0,2764.7,0.547]
[1739789353512,5.8388,2765.2,2764.7,8.31727902]